[Event "ONJK-B 2019"]
[Site "Borne"]
[Date "2019.08.07"]
[Round "4.16"]
[White "Kroon, Lindert"]
[Black "Borgelioen, Elise"]
[Result "0-1"]
[ECO "C50"]
[WhiteElo "1076"]
[BlackElo "1342"]
[Annotator "NA"]
[PlyCount "106"]
[EventDate "2019.08.05"]
[EventType "swiss"]
[EventCountry "NED"]
[SourceTitle "playchess.com"]
[Source "ChessBase"]
[SourceQuality "1"]
[TimeControl "5400+30"]

1. e4 {[%emt 0:00:00]} e5 {[%emt 0:00:00]} 2. Nf3 {[%emt 0:00:00]} Nc6 {[%emt 0:00:00]} 3. Bc4 {[%emt 0:00:00]} h6 {[%emt 0:00:15]} 4. O-O {[%emt 0:00:00]} Bc5 {[%emt 0:00:17]} 5. Nc3 {[%emt 0:00:00]} d6 {[%emt 0:00:20]} 6. h3 {[%emt 0:00:00]} Nf6 {[%emt 0:00:20]} 7. d3 {[%emt 0:00:04]} O-O {[%emt 0:00:37]} 8. a3 {[%emt 0:00:34]} Be6 {[%emt 0:00:32]} 9. Bxe6 {[%emt 0:00:08]} fxe6 {[%emt 0:00:16]} 10. b4 {[%emt 0:00:03]} Bd4 {[%emt 0:00:45]} 11. Nxd4 {[%emt 0:00:05]} Nxd4 {[%emt 0:01:24]} 12. Ne2 {[%emt 0:00:04]} Nxe2+ {[%emt 0:04:42]} 13. Qxe2 {[%emt 0:00:07]} c6 {[%emt 0:02:37]} 14. c4 {[%emt 0:00:26]} Qc7 {[%emt 0:01:10]} 15. Qa2 {[%emt 0:01:47]} Rad8 {[%emt 0:03:30]} 16. Be3 {[%emt 0:01:26]} b6 {[%emt 0:01:08]} 17. c5 {[%emt 0:00:38]} d5 {[%emt 0:02:00]} 18. cxb6 {[%emt 0:02:49]} axb6 {[%emt 0:00:37]} 19. a4 {[%emt 0:00:11]} Ra8 {[%emt 0:04:56]} 20. f3 {[%emt 0:00:37]} Ra6 {[%emt 0:03:02]} 21. Rfc1 {[%emt 0:01:26]} Qb7 {[%emt 0:02:26]} 22. Rab1 {[%emt 0:02:52]} Rfa8 {[%emt 0:05:03]} 23. Ra1 {[%emt 0:00:42]} Nh5 {[%emt 0:02:44]} 24. Rcb1 {[%emt 0:00:39]} Qc7 {[%emt 0:03:28]} 25. Rc1 {[%emt 0:00:22]} Qd6 {[%emt 0:03:51]} 26. b5 {[%emt 0:00:33]} cxb5 {[%emt 0:01:01]} 27. g4 {[%emt 0:01:48]} Nf6 {[%emt 0:03:23]} 28. d4 {[%emt 0:00:43]} exd4 {[%emt 0:06:15]} 29. Bxd4 {[%emt 0:00:05]} e5 {[%emt 0:00:35]} 30. Be3 {[%emt 0:00:24]} Kh8 {[%emt 0:04:46]} 31. exd5 {[%emt 0:00:18]} Qxd5 {[%emt 0:02:23]} 32. Qc2 {[%emt 0:00:52]} Qxf3 {[%emt 0:02:43]} 33. Qd3 {[%emt 0:00:55]} e4 {[%emt 0:02:30]} 34. Qd4 {[%emt 0:01:04]} Qg3+ {[%emt 0:02:51]} 35. Kh1 {[%emt 0:00:20]} Qxh3+ {[%emt 0:00:09]} 36. Kg1 {[%emt 0:00:07]} Nxg4 {[%emt 0:01:25]} 37. Bf4 {[%emt 0:00:33]} e3 {[%emt 0:02:54]} 38. Rc2 {[%emt 0:01:13]} Nf2 {[%emt 0:02:10]} 39. Qd5 {[%emt 0:02:28]} Qg4+ {[%emt 0:01:54]} 40. Kf1 {[%emt 0:01:06]} Qxf4 {[%emt 0:00:48]} 41. Rac1 {[%emt 0:00:39]} Nd3+ {[%emt 0:01:37]} 42. Kg2 {[%emt 0:01:58]} Nxc1 {[%emt 0:00:43]} 43. Rxc1 {[%emt 0:00:04]} Qg4+ {[%emt 0:00:30]} 44. Kf1 {[%emt 0:00:33]} Rf8+ {[%emt 0:00:13]} 45. Ke1 {[%emt 0:00:53]} Qg3+ {[%emt 0:03:01]} 46. Ke2 {[%emt 0:00:08]} Rf2+ {[%emt 0:00:30]} 47. Kd3 {[%emt 0:00:16]} e2+ {[%emt 0:01:14]} 48. Kd4 {[%emt 0:00:45]} Rf4+ {[%emt 0:00:41]} 49. Ke5 {[%emt 0:00:47]} Rg4+ {[%emt 0:01:28]} 50. Ke6 {[%emt 0:00:31]} e1=Q+ {[%emt 0:00:21]} 51. Rxe1 {[%emt 0:00:00]} Qxe1+ {[%emt 0:00:07]} 52. Kf7 {[%emt 0:00:11]} Ra7+ {[%emt 0:00:16]} 53. Kf8 {[%emt 0:00:27]} Qe7# {[%emt 0:00:08]} 0-1

[Event "ONJK-B 2019"]
[Site "Borne"]
[Date "2019.08.07"]
[Round "5.1"]
[White "Albertus, Bram"]
[Black "Maters, Arthur"]
[Result "0-1"]
[ECO "A25"]
[WhiteElo "1841"]
[BlackElo "2041"]
[Annotator "NA"]
[PlyCount "108"]
[EventDate "2019.08.05"]
[EventType "swiss"]
[EventCountry "NED"]
[SourceTitle "playchess.com"]
[Source "ChessBase"]
[SourceQuality "1"]
[TimeControl "5400+30"]

1. c4 {[%emt 0:00:00]} e5 {[%emt 0:00:00]} 2. g3 {[%emt 0:00:00]} Nc6 {[%emt 0:00:00]} 3. Bg2 {[%emt 0:00:00]} f5 {[%emt 0:00:00]} 4. Nc3 {[%emt 0:01:02]} Nf6 {[%emt 0:00:00]} 5. e3 {[%emt 0:01:00]} d5 {[%emt 0:00:00]} 6. cxd5 {[%emt 0:00:51]} Nb4 {[%emt 0:00:09]} 7. d3 {[%emt 0:00:20]} Nfxd5 {[%emt 0:00:12]} 8. Nxd5 {[%emt 0:01:20]} Nxd5 {[%emt 0:00:04]} 9. Nf3 {[%emt 0:00:37]} Bd6 {[%emt 0:01:20]} 10. O-O {[%emt 0:00:47]} Be6 {[%emt 0:00:30]} 11. e4 {[%emt 0:07:04]} fxe4 {[%emt 0:03:09]} 12. dxe4 {[%emt 0:01:04]} Nb6 {[%emt 0:00:52]} 13. b3 {[%emt 0:04:52]} Bg4 {[%emt 0:02:59]} 14. h3 {[%emt 0:06:16]} Bh5 {[%emt 0:00:27]} 15. Bb2 {[%emt 0:04:58]} Qe7 {[%emt 0:01:46]} 16. Qc2 {[%emt 0:08:02]} O-O {[%emt 0:01:18]} 17. Nh4 {[%emt 0:05:52]} g6 {[%emt 0:12:15]} 18. Rac1 {[%emt 0:18:52]} c6 {[%emt 0:04:51]} 19. f3 {[%emt 0:05:04]} Qg5 {[%emt 0:00:48]} 20. Qf2 {[%emt 0:04:09]} Be7 {[%emt 0:00:06]} 21. Rcd1 {[%emt 0:02:03]} Rae8 {[%emt 0:00:59]} 22. Bc3 {[%emt 0:07:27]} Qf6 {[%emt 0:05:50]} 23. Qb2 {[%emt 0:06:12]} Qe6 {[%emt 0:04:04]} 24. Bxe5 {[%emt 0:06:18]} Bxh4 {[%emt 0:01:26]} 25. Bh8 {[%emt 0:00:30]} Bf6 {[%emt 0:01:59]} 26. Bxf6 {[%emt 0:00:13]} Rxf6 {[%emt 0:02:04]} 27. g4 {[%emt 0:00:10]} Bxg4 {[%emt 0:00:19]} 28. fxg4 {[%emt 0:01:50]} Ref8 {[%emt 0:01:51]} 29. Rxf6 {[%emt 0:02:02]} Qxf6 {[%emt 0:00:43]} 30. Qxf6 {[%emt 0:03:38]} Rxf6 {[%emt 0:00:03]} 31. Rd8+ {[%emt 0:01:15]} Kg7 {[%emt 0:00:01]} 32. Rb8 {[%emt 0:01:11]} Rf7 {[%emt 0:00:00]} 33. Kh2 {[%emt 0:00:51]} a5 {[%emt 0:03:40]} 34. a4 {[%emt 0:00:34]} Kf6 {[%emt 0:05:24]} 35. e5+ {[%emt 0:00:33]} Kxe5 {[%emt 0:00:06]} 36. Bxc6 {[%emt 0:00:25]} Kd6 {[%emt 0:08:42]} 37. Bxb7 {[%emt 0:00:34]} Kc7 {[%emt 0:00:25]} 38. Bd5 {[%emt 0:00:30]} Nxd5 {[%emt 0:00:55]} 39. Rb5 {[%emt 0:00:13]} Kc6 {[%emt 0:02:59]} 40. Rxa5 {[%emt 0:00:19]} Rb7 {[%emt 0:00:08]} 41. Ra6+ {[%emt 0:00:36]} Kc5 {[%emt 0:00:28]} 42. Ra5+ {[%emt 0:00:52]} Kd4 {[%emt 0:00:04]} 43. Ra8 {[%emt 0:00:29]} Ke4 {[%emt 0:06:02]} 44. a5 {[%emt 0:00:30]} Rxb3 {[%emt 0:01:48]} 45. Re8+ {[%emt 0:00:29]} Kf3 {[%emt 0:00:46]} 46. a6 {[%emt 0:00:34]} Ra3 {[%emt 0:00:08]} 47. Rd8 {[%emt 0:00:29]} Nf4 {[%emt 0:00:18]} 48. Rb8 {[%emt 0:00:29]} Ra2+ {[%emt 0:01:16]} 49. Kh1 {[%emt 0:00:07]} Nxh3 {[%emt 0:00:19]} 50. Rb3+ {[%emt 0:00:35]} Kxg4 {[%emt 0:00:09]} 51. Rb4+ {[%emt 0:00:20]} Nf4 {[%emt 0:00:05]} 52. Rb7 {[%emt 0:00:18]} Rxa6 {[%emt 0:00:54]} 53. Rxh7 {[%emt 0:00:06]} Kg3 {[%emt 0:00:03]} 54. Rh6 {[%emt 0:00:34]} Ra1# {[%emt 0:00:04]} 0-1

[Event "ONJK-B 2019"]
[Site "Borne"]
[Date "2019.08.07"]
[Round "5.2"]
[White "Mainka, Alwin"]
[Black "Klaren, Oscar"]
[Result "1-0"]
[ECO "B33"]
[WhiteElo "1989"]
[BlackElo "1737"]
[Annotator "NA"]
[PlyCount "81"]
[EventDate "2019.08.05"]
[EventType "swiss"]
[EventCountry "NED"]
[SourceTitle "playchess.com"]
[Source "ChessBase"]
[SourceQuality "1"]
[TimeControl "5400+30"]

1. e4 {[%emt 0:00:00]} c5 {[%emt 0:00:00]} 2. Nf3 {[%emt 0:00:00]} Nc6 {[%emt 0:00:26]} 3. d4 {[%emt 0:00:00]} cxd4 {[%emt 0:00:05]} 4. Nxd4 {[%emt 0:00:00]} Nf6 {[%emt 0:00:05]} 5. Nc3 {[%emt 0:00:00]} e5 {[%emt 0:00:05]} 6. Ndb5 {[%emt 0:00:08]} d6 {[%emt 0:00:06]} 7. Bg5 {[%emt 0:00:09]} a6 {[%emt 0:00:09]} 8. Na3 {[%emt 0:00:08]} b5 {[%emt 0:00:07]} 9. Nd5 {[%emt 0:00:06]} Be7 {[%emt 0:00:05]} 10. Bxf6 {[%emt 0:00:07]} Bxf6 {[%emt 0:00:08]} 11. Be2 {[%emt 0:00:12]} O-O {[%emt 0:00:33]} 12. O-O {[%emt 0:00:15]} Bg5 {[%emt 0:00:33]} 13. c3 {[%emt 0:00:55]} Be6 {[%emt 0:01:48]} 14. Bf3 {[%emt 0:01:17]} Ne7 {[%emt 0:02:11]} 15. Nxe7+ {[%emt 0:00:42]} Qxe7 {[%emt 0:00:27]} 16. Nc2 {[%emt 0:00:22]} Rad8 {[%emt 0:01:17]} 17. Re1 {[%emt 0:03:19]} Qd7 {[%emt 0:04:09]} 18. Ne3 {[%emt 0:04:10]} Bxe3 {[%emt 0:00:58]} 19. Rxe3 {[%emt 0:00:14]} Kh8 {[%emt 0:02:47]} 20. a4 {[%emt 0:04:54]} f5 {[%emt 0:01:32]} 21. exf5 {[%emt 0:00:32]} Bxf5 {[%emt 0:00:28]} 22. axb5 {[%emt 0:00:29]} axb5 {[%emt 0:05:20]} 23. Bd5 {[%emt 0:05:12]} Be6 {[%emt 0:05:04]} 24. Bxe6 {[%emt 0:06:10]} Qxe6 {[%emt 0:00:11]} 25. Qd3 {[%emt 0:00:25]} Qb3 {[%emt 0:02:13]} 26. Rh3 {[%emt 0:01:48]} h6 {[%emt 0:00:07]} 27. Ra7 {[%emt 0:03:45]} Rf6 {[%emt 0:02:10]} 28. Qd2 {[%emt 0:03:11]} Rdf8 {[%emt 0:00:47]} 29. Re7 {[%emt 0:03:08]} Kg8 {[%emt 0:04:32]} 30. Rg3 {[%emt 0:01:05]} R6f7 {[%emt 0:06:28]} 31. Rxf7 {[%emt 0:00:22]} Rxf7 {[%emt 0:00:25]} 32. Rd3 {[%emt 0:00:09]} Ra7 {[%emt 0:01:27]} 33. h3 {[%emt 0:00:37]} Ra2 {[%emt 0:00:18]} 34. Rxd6 {[%emt 0:00:20]} Rxb2 {[%emt 0:02:28]} 35. Rd8+ {[%emt 0:00:10]} Kf7 {[%emt 0:00:14]} 36. Qd7+ {[%emt 0:00:50]} Kg6 {[%emt 0:00:51]} 37. Qg4+ {[%emt 0:01:08]} Kf6 {[%emt 0:01:44]} 38. Rd6+ {[%emt 0:00:55]} Ke7 {[%emt 0:00:53]} 39. Qd7+ {[%emt 0:00:34]} Kf8 {[%emt 0:00:15]} 40. Rc6 {[%emt 0:01:05]} Kg8 {[%emt 0:01:46]} 41. Qe8+ {[%emt 0:02:04]} 1-0

[Event "ONJK-B 2019"]
[Site "Borne"]
[Date "2019.08.07"]
[Round "5.3"]
[White "Rogge, Parcival"]
[Black "De Putter, Nina"]
[Result "1-0"]
[ECO "B01"]
[WhiteElo "1743"]
[BlackElo "1631"]
[Annotator "NA"]
[PlyCount "51"]
[EventDate "2019.08.05"]
[EventType "swiss"]
[EventCountry "NED"]
[SourceTitle "playchess.com"]
[Source "ChessBase"]
[SourceQuality "1"]
[TimeControl "5400+30"]

1. e4 {[%emt 0:00:00]} d5 {[%emt 0:00:00]} 2. exd5 {[%emt 0:00:00]} Nf6 {[%emt 0:00:00]} 3. d4 {[%emt 0:00:00]} Nxd5 {[%emt 0:00:00]} 4. Nf3 {[%emt 0:00:53]} g6 {[%emt 0:00:05]} 5. c4 {[%emt 0:06:45]} Nb6 {[%emt 0:00:56]} 6. h3 {[%emt 0:02:20]} Bg7 {[%emt 0:00:28]} 7. Be3 {[%emt 0:01:36]} O-O {[%emt 0:02:20]} 8. Nc3 {[%emt 0:00:44]} Nc6 {[%emt 0:00:59]} 9. d5 {[%emt 0:04:48]} Ne5 {[%emt 0:03:11]} 10. Nxe5 {[%emt 0:02:23]} Bxe5 {[%emt 0:00:47]} 11. Bd4 {[%emt 0:00:10]} Bxd4 {[%emt 0:18:08]} 12. Qxd4 {[%emt 0:00:07]} c6 {[%emt 0:09:20]} 13. Rd1 {[%emt 0:09:02]} cxd5 {[%emt 0:02:28]} 14. cxd5 {[%emt 0:06:41]} Nd7 {[%emt 0:13:38]} 15. Bc4 {[%emt 0:04:59]} b6 {[%emt 0:05:43]} 16. O-O {[%emt 0:09:25]} Nf6 {[%emt 0:07:59]} 17. Rfe1 {[%emt 0:01:14]} Bb7 {[%emt 0:01:31]} 18. Re3 {[%emt 0:08:44]} Rc8 {[%emt 0:01:53]} 19. Rde1 {[%emt 0:02:53]} e6 {[%emt 0:06:39]} 20. d6 {[%emt 0:02:07]} Nd7 {[%emt 0:10:38]} 21. Bb3 {[%emt 0:15:00]} Nc5 {[%emt 0:01:39]} 22. Bc2 {[%emt 0:02:35]} Qd7 {[%emt 0:03:52]} 23. b4 {[%emt 0:01:19]} Na6 {[%emt 0:00:29]} 24. Bb3 {[%emt 0:01:48]} Rfd8 {[%emt 0:02:36]} 25. Rxe6 {[%emt 0:00:32]} Qc6 {[%emt 0:00:53]} 26. Nd5 {[%emt 0:00:43]} 1-0

[Event "ONJK-B 2019"]
[Site "Borne"]
[Date "2019.08.07"]
[Round "5.4"]
[White "Nopper, Louis"]
[Black "Baselmans, Daan"]
[Result "0-1"]
[ECO "A24"]
[WhiteElo "1579"]
[BlackElo "1720"]
[Annotator "NA"]
[PlyCount "59"]
[EventDate "2019.08.05"]
[EventType "swiss"]
[EventCountry "NED"]
[SourceTitle "playchess.com"]
[Source "ChessBase"]
[SourceQuality "1"]
[TimeControl "5400+30"]

1. c4 {[%emt 0:00:00]} Nf6 {[%emt 0:00:00]} 2. Nc3 {[%emt 0:00:00]} g6 {[%emt 0:00:00]} 3. Nf3 {[%emt 0:00:00]} Bg7 {[%emt 0:00:00]} 4. e4 {[%emt 0:00:11]} d6 {[%emt 0:00:00]} 5. g3 {[%emt 0:00:21]} e5 {[%emt 0:00:50]} 6. Bg2 {[%emt 0:00:09]} O-O {[%emt 0:00:22]} 7. O-O {[%emt 0:00:10]} Nbd7 {[%emt 0:01:17]} 8. d3 {[%emt 0:00:24]} Ne8 {[%emt 0:01:37]} 9. Be3 {[%emt 0:02:12]} f5 {[%emt 0:00:23]} 10. Qc1 {[%emt 0:00:48]} Nef6 {[%emt 0:02:01]} 11. exf5 {[%emt 0:08:16]} gxf5 {[%emt 0:00:24]} 12. Ng5 {[%emt 0:01:12]} Re8 {[%emt 0:03:33]} 13. f4 {[%emt 0:02:27]} Nf8 {[%emt 0:11:31]} 14. fxe5 {[%emt 0:24:09]} dxe5 {[%emt 0:00:59]} 15. Nd5 {[%emt 0:00:14]} c6 {[%emt 0:03:56]} 16. Nxf6+ {[%emt 0:01:57]} Qxf6 {[%emt 0:00:28]} 17. Nf3 {[%emt 0:00:42]} Ne6 {[%emt 0:02:25]} 18. Rb1 {[%emt 0:08:55]} Rd8 {[%emt 0:09:59]} 19. Qc3 {[%emt 0:09:12]} f4 {[%emt 0:16:48]} 20. Bf2 {[%emt 0:04:22]} Qf5 {[%emt 0:01:57]} 21. Ne1 {[%emt 0:01:20]} Ng5 {[%emt 0:02:26]} 22. Bc5 {[%emt 0:13:11]} e4 {[%emt 0:02:26]} 23. Qa3 {[%emt 0:00:16]} f3 {[%emt 0:02:04]} 24. dxe4 {[%emt 0:00:51]} Nxe4 {[%emt 0:00:13]} 25. Nxf3 {[%emt 0:00:19]} Qxc5+ {[%emt 0:00:56]} 26. Qxc5 {[%emt 0:00:20]} Nxc5 {[%emt 0:00:04]} 27. b3 {[%emt 0:00:48]} Bf5 {[%emt 0:00:26]} 28. Rbd1 {[%emt 0:00:18]} Rxd1 {[%emt 0:04:13]} 29. Rxd1 {[%emt 0:00:08]} Re8 {[%emt 0:00:38]} 30. Nd4 {[%emt 0:01:05]} 0-1

[Event "ONJK-B 2019"]
[Site "Borne"]
[Date "2019.08.07"]
[Round "5.5"]
[White "Van Weerden, Jur"]
[Black "Arnold, Kiri"]
[Result "0-1"]
[ECO "B24"]
[WhiteElo "1676"]
[BlackElo "1555"]
[Annotator "NA"]
[PlyCount "132"]
[EventDate "2019.08.05"]
[EventType "swiss"]
[EventCountry "NED"]
[SourceTitle "playchess.com"]
[Source "ChessBase"]
[SourceQuality "1"]
[TimeControl "5400+30"]

1. e4 {[%emt 0:00:00]} c5 {[%emt 0:00:00]} 2. Nc3 {[%emt 0:00:00]} Nc6 {[%emt 0:00:00]} 3. Nge2 {[%emt 0:00:00]} e5 {[%emt 0:01:03]} 4. g3 {[%emt 0:00:21]} g6 {[%emt 0:00:10]} 5. Bg2 {[%emt 0:00:04]} Bg7 {[%emt 0:00:06]} 6. O-O {[%emt 0:00:04]} d6 {[%emt 0:00:20]} 7. Nd5 {[%emt 0:00:05]} Nge7 {[%emt 0:03:40]} 8. Nec3 {[%emt 0:00:23]} O-O {[%emt 0:00:47]} 9. Nxe7+ {[%emt 0:00:44]} Nxe7 {[%emt 0:00:26]} 10. d3 {[%emt 0:00:07]} Be6 {[%emt 0:02:59]} 11. Be3 {[%emt 0:01:14]} Qc7 {[%emt 0:01:40]} 12. Qd2 {[%emt 0:04:06]} Rad8 {[%emt 0:01:25]} 13. Bg5 {[%emt 0:01:00]} f6 {[%emt 0:04:14]} 14. Be3 {[%emt 0:00:28]} d5 {[%emt 0:02:03]} 15. exd5 {[%emt 0:00:32]} Nxd5 {[%emt 0:00:17]} 16. Nxd5 {[%emt 0:00:27]} Bxd5 {[%emt 0:00:11]} 17. f3 {[%emt 0:00:33]} b6 {[%emt 0:02:07]} 18. a4 {[%emt 0:01:03]} Bc6 {[%emt 0:02:50]} 19. a5 {[%emt 0:00:31]} Qb7 {[%emt 0:03:14]} 20. Ra3 {[%emt 0:00:48]} f5 {[%emt 0:03:29]} 21. Bh6 {[%emt 0:05:44]} b5 {[%emt 0:02:17]} 22. Bxg7 {[%emt 0:00:43]} Qxg7 {[%emt 0:00:24]} 23. Qe3 {[%emt 0:00:50]} b4 {[%emt 0:05:16]} 24. Raa1 {[%emt 0:01:00]} Qe7 {[%emt 0:00:54]} 25. Rfe1 {[%emt 0:00:52]} Rfe8 {[%emt 0:01:15]} 26. a6 {[%emt 0:00:25]} Rb8 {[%emt 0:09:29]} 27. Ra5 {[%emt 0:04:48]} Rb5 {[%emt 0:01:00]} 28. Rea1 {[%emt 0:01:05]} Qd6 {[%emt 0:00:33]} 29. Qf2 {[%emt 0:07:16]} Reb8 {[%emt 0:07:40]} 30. R5a2 {[%emt 0:03:45]} b3 {[%emt 0:01:56]} 31. cxb3 {[%emt 0:00:30]} Rxb3 {[%emt 0:00:07]} 32. Bf1 {[%emt 0:00:11]} Qd5 {[%emt 0:04:03]} 33. Rc1 {[%emt 0:01:41]} R3b5 {[%emt 0:03:10]} 34. d4 {[%emt 0:04:48]} Rb4 {[%emt 0:03:05]} 35. Ra5 {[%emt 0:03:40]} Qxf3 {[%emt 0:04:19]} 36. Qxf3 {[%emt 0:01:36]} Bxf3 {[%emt 0:00:02]} 37. dxe5 {[%emt 0:01:13]} Rxb2 {[%emt 0:02:00]} 38. Raxc5 {[%emt 0:00:07]} Rb1 {[%emt 0:05:43]} 39. Rxb1 {[%emt 0:01:15]} Rxb1 {[%emt 0:00:02]} 40. Rc8+ {[%emt 0:00:17]} Kf7 {[%emt 0:02:43]} 41. Rc7+ {[%emt 0:00:08]} Ke6 {[%emt 0:00:28]} 42. Kf2 {[%emt 0:00:09]} Be4 {[%emt 0:00:34]} 43. Rxa7 {[%emt 0:00:36]} Kxe5 {[%emt 0:00:50]} 44. Rxh7 {[%emt 0:00:28]} Rb2+ {[%emt 0:00:40]} 45. Ke3 {[%emt 0:00:22]} g5 {[%emt 0:00:33]} 46. Re7+ {[%emt 0:01:40]} Kd6 {[%emt 0:02:21]} 47. Re8 {[%emt 0:01:10]} Rxh2 {[%emt 0:03:46]} 48. Be2 {[%emt 0:01:23]} Rh1 {[%emt 0:00:48]} 49. Rxe4 {[%emt 0:04:21]} fxe4 {[%emt 0:00:07]} 50. Kxe4 {[%emt 0:00:12]} Re1 {[%emt 0:01:00]} 51. Kf3 {[%emt 0:00:03]} Ke5 {[%emt 0:01:29]} 52. Bb5 {[%emt 0:00:37]} Ra1 {[%emt 0:00:26]} 53. Kg4 {[%emt 0:00:13]} Ra5 {[%emt 0:00:40]} 54. Bd3 {[%emt 0:00:40]} Kf6 {[%emt 0:00:15]} 55. Kf3 {[%emt 0:01:23]} Ra4 {[%emt 0:00:16]} 56. Ke3 {[%emt 0:01:04]} Ke5 {[%emt 0:00:08]} 57. Kd2 {[%emt 0:00:59]} Kd4 {[%emt 0:01:53]} 58. g4 {[%emt 0:02:12]} Ra2+ {[%emt 0:00:37]} 59. Bc2 {[%emt 0:00:12]} Rxa6 {[%emt 0:00:08]} 60. Ke2 {[%emt 0:00:35]} Ra2 {[%emt 0:00:35]} 61. Kd2 {[%emt 0:00:34]} Ke5 {[%emt 0:00:13]} 62. Kd3 {[%emt 0:00:24]} Rxc2 {[%emt 0:00:10]} 63. Kxc2 {[%emt 0:00:15]} Kf4 {[%emt 0:00:04]} 64. Kd2 {[%emt 0:00:05]} Kxg4 {[%emt 0:00:04]} 65. Ke2 {[%emt 0:00:05]} Kg3 {[%emt 0:00:06]} 66. Kf1 {[%emt 0:00:21]} Kh2 {[%emt 0:00:02]} 0-1

[Event "ONJK-B 2019"]
[Site "Borne"]
[Date "2019.08.07"]
[Round "5.6"]
[White "Molanus, Lennart"]
[Black "Ekker, Laurens"]
[Result "1-0"]
[ECO "D34"]
[WhiteElo "1619"]
[BlackElo "1614"]
[Annotator "NA"]
[PlyCount "65"]
[EventDate "2019.08.05"]
[EventType "swiss"]
[EventCountry "NED"]
[SourceTitle "playchess.com"]
[Source "ChessBase"]
[SourceQuality "1"]
[TimeControl "5400+30"]

1. d4 {[%emt 0:00:00]} d5 {[%emt 0:00:00]} 2. c4 {[%emt 0:00:00]} e6 {[%emt 0:00:00]} 3. Nc3 {[%emt 0:00:00]} c5 {[%emt 0:00:00]} 4. cxd5 {[%emt 0:00:00]} exd5 {[%emt 0:00:00]} 5. Nf3 {[%emt 0:00:00]} Nf6 {[%emt 0:00:09]} 6. g3 {[%emt 0:00:04]} Nc6 {[%emt 0:00:06]} 7. Bg2 {[%emt 0:00:03]} Be7 {[%emt 0:00:07]} 8. O-O {[%emt 0:00:04]} O-O {[%emt 0:00:06]} 9. Bg5 {[%emt 0:00:03]} cxd4 {[%emt 0:00:05]} 10. Nxd4 {[%emt 0:00:08]} h6 {[%emt 0:00:10]} 11. Be3 {[%emt 0:00:01]} Re8 {[%emt 0:00:08]} 12. Qb3 {[%emt 0:00:19]} Bf8 {[%emt 0:01:12]} 13. Bxd5 {[%emt 0:13:33]} Nxd5 {[%emt 0:02:41]} 14. Qxd5 {[%emt 0:01:04]} Nxd4 {[%emt 0:02:45]} 15. Bxd4 {[%emt 0:00:32]} Qxd5 {[%emt 0:00:24]} 16. Nxd5 {[%emt 0:00:07]} Rxe2 {[%emt 0:00:45]} 17. Nc7 {[%emt 0:01:04]} Bh3 {[%emt 0:06:37]} 18. Nxa8 {[%emt 0:01:15]} Bxf1 {[%emt 0:00:30]} 19. Kxf1 {[%emt 0:00:18]} Re4 {[%emt 0:08:47]} 20. Be3 {[%emt 0:04:55]} Bd6 {[%emt 0:14:40]} 21. Rd1 {[%emt 0:01:22]} Re6 {[%emt 0:03:28]} 22. Bxa7 {[%emt 0:00:41]} Be5 {[%emt 0:00:55]} 23. Rd8+ {[%emt 0:01:22]} Kh7 {[%emt 0:00:08]} 24. Bd4 {[%emt 0:00:44]} Bxd4 {[%emt 0:00:44]} 25. Rxd4 {[%emt 0:00:07]} Ra6 {[%emt 0:00:09]} 26. Nc7 {[%emt 0:00:24]} Rxa2 {[%emt 0:00:32]} 27. Rb4 {[%emt 0:00:22]} Ra7 {[%emt 0:00:41]} 28. Nb5 {[%emt 0:00:45]} Ra1+ {[%emt 0:00:12]} 29. Kg2 {[%emt 0:00:07]} Ra6 {[%emt 0:00:59]} 30. Nc7 {[%emt 0:00:37]} Ra7 {[%emt 0:00:14]} 31. Rb6 {[%emt 0:01:21]} Kg8 {[%emt 0:00:38]} 32. Nb5 {[%emt 0:00:26]} Ra2 {[%emt 0:00:06]} 33. Nd6 {[%emt 0:00:09]} 1-0